bitfinex/quotes_SOLUSD_20250829
["timestamp","ask_amount","ask_price","bid_price","bid_amount"]
[1756470681181,57.29317729,213.48,213.29,0.03]
[1756470681479,57.29317729,213.52,213.29,0.03]
[1756470681653,57.29317729,213.51,213.31,0.5]
[1756470681854,26.0,213.48,213.29,0.03]
[1756470682056,57.29317729,213.3,213.29,0.03]
[1756470682557,26.0,213.46,213.29,0.03]
[1756470682741,33.7,213.49,213.29,0.03]
[1756470682952,57.29317729,213.31,213.29,0.03]
[1756470683265,33.7,213.49,213.29,0.03]
[1756470683449,26.0,213.45,213.29,0.03]
[1756470683645,26.0,213.38,213.23,0.2]
[1756470684069,57.29317729,213.24,213.23,0.2]
[1756470684268,62.51880573,213.51,213.23,0.2]
[1756470684449,4.68471147,213.47,213.23,0.2]
[1756470684779,20.0,213.57,213.23,0.2]
[1756470684780,33.72,213.64,213.23,4.88969817]
[1756470684943,33.72,213.64,213.31,20.0]
[1756470685144,33.72,213.64,213.5,26.0]
[1756470685145,35.92,213.63,213.5,26.0]
[1756470685444,33.72,213.79,213.52,26.0]
[1756470685650,38.39760838,213.79,213.47,26.0]
[1756470685840,70.88,213.78,213.28,4.68867216]
[1756470686047,20.0,213.73,213.28,4.68867216]
[1756470686250,26.0,213.61,213.23,0.2]
[1756470686448,26.0,213.45,213.23,0.2]
[1756470686681,33.74,213.44,213.23,0.2]
[1756470686856,26.0,213.41,213.23,0.2]
[1756470687062,57.29317729,213.25,213.23,0.2]
[1756470687247,33.74,213.24,213.1,0.91679107]
[1756470687448,33.74,213.24,213.05,2.45362092]
[1756470687449,33.74,213.23,213.05,1.74362092]
[1756470687649,20.0,213.24,212.74,23.50274476]
[1756470687650,83.29317729,213.06,212.74,23.50274476]
[1756470687965,83.29317729,213.06,212.73,16.45278051]
[1756470687966,70.9,213.11,212.77,22.45495008]
[1756470688150,70.9,213.11,212.8,20.0]
[1756470688347,4.98550482,213.29,212.86,20.0]
[1756470688651,33.74,213.5,213.02,26.0]
[1756470688652,33.74,213.47,213.02,26.0]
[1756470688857,70.9,213.46,213.04,26.0]
[1756470689053,70.9,213.46,212.94,20.0]
[1756470689266,20.0,213.37,212.82,20.0]
[1756470689467,26.0,213.36,212.8,20.0]
[1756470689777,26.0,213.36,212.77,2.45495008]
[1756470689778,0.14216157,213.29,212.86,20.0]
[1756470690082,57.29317729,213.17,213.06,57.29317729]
[1756470690253,0.14216157,213.32,212.95,26.0]
[1756470690572,0.14216157,213.32,212.64,23.21111607]
[1756470690573,0.14216157,213.29,212.78,29.64415674]
[1756470690759,0.14216157,213.24,212.81,16.44659555]
[1756470690977,0.14216157,213.14,212.81,4.6990273]
[1756470691277,0.14216157,213.09,212.81,4.6990273]
[1756470691478,0.14216157,212.97,212.83,0.2]
[1756470691654,33.78,212.96,212.83,0.2]
[1756470692082,0.14216157,212.95,212.83,0.2]
[1756470692259,33.78,212.96,212.84,16.44427738]
[1756470692452,33.78,213.25,212.87,26.0]
[1756470692653,33.78,213.25,212.84,59.93610222]
[1756470692654,33.78,213.25,212.99,26.0]
[1756470692875,33.78,213.25,212.94,0.14216157]
[1756470693173,33.78,213.25,212.95,13.73775558]
[1756470693377,33.78,213.38,213.07,26.0]
[1756470693682,57.29317729,213.19,212.95,9.27175214]
[1756470693878,57.29317729,213.19,212.75,23.34730115]
[1756470693879,71.0,213.23,212.98,0.14216157]
[1756470694055,26.0,213.2,212.96,4.6957175]
[1756470694260,57.29317729,213.18,212.76,13.05584894]
[1756470694554,57.29317729,213.18,212.72,20.21324235]
[1756470694555,26.0,213.14,212.81,4.69887322]
[1756470694753,0.14216157,213.12,212.72,11.75225645]
[1756470694956,0.14216157,213.02,212.66,15.12934642]
[1756470695163,71.02,213.15,212.83,4.8985679]
[1756470695379,104.82,213.15,212.84,20.0]
[1756470695576,104.82,213.15,212.84,13.73775558]
[1756470695778,57.29317729,212.86,212.83,0.2]
[1756470696076,57.29317729,212.84,212.83,0.2]
[1756470696259,33.8,212.87,212.83,0.2]
[1756470696457,0.14216157,212.86,212.83,0.2]
[1756470696782,13.59559401,212.83,212.66,0.91679107]
[1756470697082,96.8887713,212.84,212.66,0.91679107]
[1756470697083,57.29317729,212.67,212.66,0.91679107]
[1756470697257,0.21324235,212.62,212.39,2.45881436]
[1756470697458,26.0,212.36,212.22,0.92854481]
[1756470697655,57.29317729,212.23,212.22,0.92854481]
[1756470697855,0.14216157,212.42,212.22,0.92854481]
[1756470698208,0.14216157,212.38,212.22,5.64049197]
[1756470698372,13.59559401,212.45,212.22,17.42072003]
[1756470698704,0.14216157,212.6,212.3,26.0]
[1756470698878,0.14216157,212.6,212.25,20.0]
[1756470698879,28.36,212.59,212.25,20.0]
[1756470699058,20.0,212.79,212.22,40.98117616]
[1756470699059,0.14216157,212.5,212.22,5.64049197]
[1756470699259,0.14216157,212.45,212.22,5.64049197]
[1756470699585,26.0,212.42,212.22,0.92854481]
[1756470699800,33.82,212.49,212.23,4.71186919]
[1756470700098,63.96,212.48,212.23,4.71186919]
[1756470700385,63.96,212.48,212.26,26.0]
[1756470700679,63.96,212.48,212.22,0.92854481]
[1756470700680,0.14216157,212.44,212.22,0.92854481]
[1756470700891,0.14216157,212.44,212.01,0.03]
[1756470700892,70.8887713,212.23,212.01,0.03]
[1756470701092,34.00216157,212.22,212.02,62.00959697]
[1756470701254,20.0,212.58,212.02,16.50776011]
[1756470701456,13.59559401,212.47,212.02,16.50776011]
[1756470701660,0.14216157,212.46,212.01,0.03]
[1756470701880,57.29317729,212.23,212.01,0.03]
[1756470702100,57.29317729,212.1,212.01,0.03]
[1756470702301,71.16,212.1,212.01,0.03]
[1756470702459,57.29317729,212.02,212.01,0.03]
[1756470702659,57.29317729,212.02,211.79,0.2]
[1756470702660,26.0,211.95,211.85,2.46587775]
[1756470702859,0.14216157,211.94,211.79,0.2]
[1756470703076,33.86,212.02,211.79,0.2]
[1756470703077,59.96,211.93,211.79,0.2]
[1756470703273,0.14216157,211.89,211.79,0.2]
[1756470703491,0.14216157,211.97,211.79,0.2]
[1756470703673,57.29317729,211.8,211.79,0.2]
[1756470703865,71.18,211.85,211.79,0.2]
[1756470704065,23.92694301,212.37,211.79,0.2]
[1756470704282,48.23531571,213.99,211.89,20.0]
[1756470704283,53.86708147,212.53,211.89,20.0]
[1756470704590,57.29317729,212.52,212.23,26.0]
[1756470704773,47.96,212.51,212.07,26.0]
[1756470704973,57.29317729,212.39,212.03,20.0]
[1756470705284,47.96,212.51,212.16,0.14216157]
[1756470705591,19.98708147,212.49,211.86,57.29317729]
[1756470705779,26.0,212.35,211.88,13.59559401]
[1756470706093,26.0,212.31,211.87,16.51956387]
[1756470706392,33.92,212.34,211.99,0.14216157]
[1756470706688,26.0,212.31,212.09,26.0]
[1756470706873,57.29317729,212.19,211.87,40.11894084]
[1756470707185,33.92,212.34,211.88,13.73775558]
[1756470707390,29.487,212.34,212.01,13.73775558]
[1756470707688,29.487,212.34,212.13,4.71409041]
[1756470707689,57.29317729,212.2,212.13,4.71409041]
[1756470707893,57.29317729,212.14,211.94,11.79579126]
[1756470708071,26.0,212.31,211.94,31.79579126]
[1756470708265,13.59559401,212.33,211.95,0.14216157]
[1756470708461,57.29317729,212.52,212.2,26.14216157]
[1756470708667,57.29317729,212.22,212.04,0.14216157]
[1756470708865,71.3,212.51,212.21,57.29317729]
[1756470709106,71.3,212.51,212.09,20.0]
[1756470709267,33.94,212.55,212.3,13.59559401]
[1756470709468,71.3,212.54,212.15,20.0]
[1756470709685,33.94,212.72,212.28,13.73775558]
[1756470709896,105.24,212.72,212.47,13.73775558]
[1756470710081,33.94,212.91,212.55,0.14216157]
[1756470710286,33.94,213.02,212.55,0.14216157]
[1756470710287,33.94,213.11,212.6,0.14216157]
[1756470710489,33.94,213.11,212.6,13.73775558]
[1756470710694,33.94,213.11,212.72,0.235]
[1756470711002,57.29317729,213.05,212.85,0.14216157]
[1756470711170,33.94,213.11,213.01,13.73775558]
[1756470711371,57.29317729,213.15,212.93,26.14216157]
[1756470711571,71.32,213.16,213.06,0.14216157]
[1756470711777,71.32,213.16,213.08,57.29317729]
[1756470711998,57.29317729,213.23,213.04,0.14216157]
[1756470712204,33.94,213.31,213.12,26.0]
[1756470712496,33.94,213.31,212.88,20.0]
[1756470712703,33.94,213.31,213.07,13.59559401]
[1756470712994,33.94,213.31,212.94,59.9173476]
[1756470713203,33.94,213.31,212.99,13.73775558]
[1756470713496,19.98708147,213.28,212.88,26.0]
[1756470713714,16.42036124,213.15,212.73,14.02617011]
[1756470713872,4.68911188,213.26,212.74,20.0]
[1756470714077,36.48,213.18,212.76,46.21324235]
[1756470714274,36.48,213.18,213.02,26.0]
[1756470714584,33.94,213.31,213.16,0.14216157]
[1756470714776,71.26,213.43,213.21,57.29317729]
[1756470714974,19.98708147,213.7,213.31,39.73775558]
[1756470715191,33.9,213.7,213.31,39.73775558]
[1756470715576,28.34,213.67,213.36,0.14216157]
[1756470715802,28.34,213.67,213.39,26.0]
[1756470716003,57.29317729,213.52,213.43,0.14216157]
[1756470716176,57.29317729,213.52,213.42,57.29317729]
[1756470716177,57.29317729,213.51,213.02,0.14216157]
[1756470716496,26.0,213.41,213.09,0.14216157]
[1756470716687,26.0,213.31,212.93,20.0]
[1756470716893,26.0,213.31,212.94,11.74039635]
[1756470717197,0.14216157,213.36,212.94,11.74039635]
[1756470717400,26.0,213.27,212.91,4.69682025]
[1756470717791,71.2,213.3,212.91,16.43887088]
[1756470717975,33.9,213.41,212.98,20.0]
[1756470718299,71.18,213.4,213.08,0.14216157]
[1756470718471,107.56820611,213.4,212.91,16.43887088]
[1756470718671,26.0,213.31,213.0,57.29317729]
[1756470718875,0.14216157,213.38,212.93,20.0]
[1756470719183,26.0,213.27,212.84,4.69836496]
[1756470719385,57.29317729,213.04,212.95,57.29317729]
[1756470719599,33.88,213.32,212.84,45.63138155]
[1756470719778,71.18,213.31,212.84,16.44427738]
[1756470719976,0.14216157,213.3,212.84,16.44427738]
[1756470720171,71.18,213.31,213.07,57.29317729]
[1756470720396,71.18,213.31,212.85,77.29317729]
[1756470720397,71.18,213.31,212.97,0.14216157]
[1756470720593,0.06,213.27,212.97,0.14216157]
[1756470720807,0.06,213.27,212.96,26.0]
[1756470721103,0.06,213.27,212.93,0.14216157]
[1756470721321,0.06,213.27,212.89,0.21324235]
[1756470721478,0.06,213.27,212.84,4.69836496]
[1756470721672,0.06,213.27,212.75,43.50165415]
[1756470721673,16.61328361,213.27,212.75,43.50165415]
[1756470721985,0.14216157,213.16,212.77,4.6999107]
[1756470722184,57.29317729,213.02,212.77,39.94924095]
[1756470722387,71.16,213.06,212.77,16.44968745]
[1756470722591,57.29317729,212.98,212.77,16.44968745]
[1756470722788,71.16,213.07,212.86,57.29317729]
[1756470723105,71.16,213.07,212.77,16.44968745]
[1756470723106,26.0,213.06,212.87,57.29317729]
[1756470723301,26.0,213.06,212.73,4.70079443]
[1756470723302,57.29317729,212.93,212.73,4.70079443]
[1756470723601,33.86,213.09,212.73,16.45278051]
[1756470723802,33.86,213.09,212.77,4.6999107]
[1756470724204,33.86,213.09,212.86,57.29317729]
[1756470724382,26.0,213.05,212.77,4.6999107]
[1756470724578,57.29317729,212.85,212.59,20.0]
[1756470724779,26.0,212.97,212.73,57.29317729]
[1756470724780,0.14216157,212.96,212.73,57.29317729]
[1756470724989,70.27225059,213.09,212.83,26.0]
[1756470724990,71.14,212.98,212.83,26.0]
[1756470725192,0.14216157,213.05,212.62,4.70322641]
[1756470725392,0.14216157,212.93,212.62,4.70322641]
[1756470725603,0.14216157,212.93,212.57,4.70433269]
[1756470725788,0.14216157,212.93,212.52,16.4690382]
[1756470725789,26.0,212.89,212.52,16.4690382]
[1756470725992,83.29317729,212.85,212.37,11.77190751]
[1756470726181,34.00216157,212.84,212.44,20.0]
[1756470726499,62.72,212.89,212.58,20.0]
[1756470726701,62.72,212.89,212.45,3.48646468]
[1756470726702,105.02,212.92,212.57,3.48646468]
[1756470727016,33.86,212.92,212.44,0.21324235]
[1756470727309,52.14,212.91,212.59,20.0]
[1756470727611,33.86,212.92,212.63,0.14216157]
[1756470727795,26.0,212.89,212.64,57.29317729]
[1756470728111,0.14216157,212.9,212.47,20.0]
[1756470728309,0.14216157,212.9,212.4,11.76997933]
[1756470728310,26.0,212.82,212.46,3.48646468]
[1756470728609,57.29317729,212.62,212.4,11.76997933]
[1756470728776,19.98708147,213.03,212.61,57.29317729]
[1756470728976,26.0,212.87,212.44,20.0]
[1756470729214,0.14216157,212.86,212.45,3.48646468]
[1756470729376,19.98708147,212.77,212.21,9.63507147]
[1756470729582,0.14216157,212.59,212.2,16.4938737]
[1756470729788,26.0,212.51,212.15,21.29413994]
[1756470729986,16.46748846,212.54,212.11,4.71453491]
[1756470729987,26.0,212.49,212.11,4.71453491]
[1756470730198,0.14216157,212.48,212.11,4.71453491]
[1756470730386,57.29317729,212.28,212.11,4.71453491]
[1756470730599,0.14216157,212.53,212.13,20.0]
[1756470730905,4.7049967,212.54,212.16,20.0]
[1756470731224,4.7049967,212.54,212.15,20.0]
[1756470731225,26.0,212.52,212.15,20.0]
[1756470731401,26.0,212.51,212.11,40.07354673]
[1756470731587,0.14216157,212.5,212.11,40.07354673]
[1756470731785,16.47291381,212.47,212.11,4.71453491]
[1756470731992,19.98708147,212.64,212.13,20.0]
[1756470732296,94.26,212.63,212.35,13.59559401]
[1756470732499,94.26,212.63,212.21,20.0]
[1756470732500,71.2,212.7,212.52,26.0]
[1756470732696,71.2,212.7,212.39,0.14216157]
[1756470732697,71.2,212.7,212.26,0.21324235]
[1756470732899,71.2,212.7,212.33,0.14216157]
[1756470732900,57.29317729,212.51,212.33,0.14216157]
[1756470733108,33.88,212.72,212.53,26.0]
[1756470733295,33.88,212.72,212.54,13.59559401]
[1756470733495,33.88,212.72,212.38,26.0]
[1756470733701,26.0,212.69,212.52,57.29317729]
[1756470733909,26.0,212.69,212.41,13.73775558]
[1756470734112,0.61607275,212.68,212.27,4.71098129]
[1756470734427,26.0,212.67,212.3,0.14216157]
[1756470734605,26.0,212.63,212.44,57.29317729]
[1756470734788,71.22,212.68,212.35,26.0]
[1756470734990,0.47391118,212.74,212.58,57.29317729]
[1756470735222,0.47391118,212.74,212.52,26.0]
[1756470735715,0.47391118,212.74,212.62,57.29317729]
[1756470735922,33.9,212.75,212.64,26.0]
[1756470736111,0.47391118,212.74,212.59,57.29317729]
[1756470736293,0.47391118,212.74,212.55,13.59559401]
[1756470736489,33.9,212.75,212.62,26.0]
[1756470736694,26.0,212.72,212.54,26.0]
[1756470736907,57.29317729,212.56,212.35,16.48222273]
[1756470737124,57.76708847,212.65,212.55,57.29317729]
[1756470737442,57.29317729,212.56,212.15,33.9]
[1756470737625,0.47391118,212.55,212.44,57.29317729]
[1756470737935,57.29317729,212.45,212.06,20.0]
[1756470738097,0.47391118,212.44,212.3,57.29317729]
[1756470738424,26.0,212.56,212.31,0.47100937]
[1756470738726,26.0,212.52,212.19,23.24582939]
[1756470738891,13.73775558,212.46,212.2,0.47125353]
[1756470739091,57.29317729,212.31,212.06,0.684807]
[1756470739297,71.24,212.38,212.07,4.71542415]
[1756470739514,33.9,212.39,212.32,57.29317729]
[1756470739714,57.29317729,212.42,212.17,0.47132016]
[1756470739913,0.47391118,212.48,212.2,0.14216157]
[1756470740116,33.9,212.56,212.19,57.29317729]
[1756470740117,0.47391118,212.55,212.4,26.0]
[1756470740318,57.29317729,212.41,212.19,0.03]
[1756470740522,0.47391118,212.53,212.38,57.29317729]
[1756470740721,0.47391118,212.53,212.39,13.59559401]
[1756470740921,0.06,212.65,212.47,13.59559401]
[1756470741103,0.06,212.65,212.52,26.0]
[1756470741422,0.06,212.65,212.41,0.14153747]
[1756470741423,57.29317729,212.53,212.41,0.14153747]
[1756470741727,71.26,212.6,212.41,26.14153747]
[1756470741900,57.29317729,212.54,212.45,57.29317729]
[1756470742103,57.29317729,212.46,212.41,0.14153747]
[1756470742311,0.14216157,212.52,212.41,0.14153747]
[1756470742312,57.29317729,212.43,212.41,0.14153747]
[1756470742516,16.46058683,212.63,212.41,0.14153747]
[1756470742823,26.0,212.44,212.41,0.14153747]
[1756470743005,0.14216157,212.59,212.41,0.14153747]
[1756470743318,83.29317729,212.42,212.22,57.29317729]
[1756470743621,57.29317729,212.36,212.28,57.29317729]
[1756470743804,4.70366886,212.6,212.19,40.55950622]
[1756470744008,84.85559401,212.59,212.23,13.73775558]
[1756470744200,13.59559401,212.58,212.34,26.0]
[1756470744520,0.14216157,212.45,212.31,57.29317729]
[1756470744732,0.06,212.65,212.44,57.29317729]
[1756470745020,57.29317729,212.48,212.35,0.47092064]
[1756470745221,57.29317729,212.48,212.19,53.14407942]
[1756470745222,33.92,212.51,212.19,40.08823048]
[1756470745406,33.92,212.51,212.28,26.0]
[1756470745407,57.29317729,212.43,212.28,26.0]
[1756470745610,57.29317729,212.43,212.35,57.29317729]
[1756470745823,57.29317729,212.41,212.33,57.29317729]
[1756470746123,57.29317729,212.35,212.19,0.03]
[1756470746320,13.59559401,212.46,212.19,0.03]
[1756470746321,26.0,212.48,212.19,4.7425858]
[1756470746524,26.0,212.48,212.2,0.47125353]
[1756470746727,23.50203048,212.75,212.24,0.14216157]
[1756470746728,19.98708147,212.71,212.24,0.14216157]
[1756470746936,1.56153103,240.33,212.26,0.14216157]
[1756470746937,57.29317729,212.48,212.26,0.14216157]
[1756470747106,57.29317729,212.51,212.34,13.59559401]
[1756470747306,38.78,212.64,212.41,26.0]
[1756470747616,38.78,212.64,212.5,57.29317729]
[1756470747825,38.78,212.64,212.35,0.47092064]
[1756470747826,26.0,212.51,212.2,0.14216157]
[1756470748122,57.29317729,212.4,212.21,40.52589414]
[1756470748321,59.92,212.47,212.29,57.29317729]
[1756470748627,33.92,212.47,212.34,57.29317729]
[1756470748799,33.92,212.47,212.39,57.29317729]
[1756470749222,57.29317729,212.46,212.37,57.29317729]
[1756470749432,33.92,212.47,212.33,26.0]
[1756470749640,33.92,212.47,212.22,0.47120912]
[1756470749804,33.92,212.47,212.21,63.61622919]
[1756470749805,71.3,212.46,212.21,63.61622919]
[1756470750003,57.29317729,212.4,212.31,57.29317729]
[1756470750236,71.3,212.46,212.38,57.29317729]
[1756470750403,71.3,212.46,212.33,13.73775558]
[1756470750604,34.0,212.65,212.45,57.29317729]
[1756470750910,57.29317729,212.46,212.21,47.12313274]
[1756470751260,38.70261007,212.65,212.24,26.0]
[1756470751444,34.0,212.65,212.44,57.29317729]
[1756470751726,71.3,212.64,212.31,0.14216157]
[1756470751931,26.0,212.52,212.25,13.73775558]
[1756470752134,19.98708147,212.71,212.26,0.47112032]
[1756470752334,57.29317729,212.49,212.28,0.14216157]
[1756470752507,57.29317729,212.43,212.3,13.73775558]
[1756470752704,19.98708147,212.64,212.42,26.0]
[1756470752918,0.06,212.65,212.61,57.29317729]
[1756470753135,1e-08,212.65,212.62,0.67]
[1756470753319,1e-08,212.65,212.57,0.67]
[1756470753517,1e-08,212.65,212.63,57.29317729]
[1756470753703,1e-08,212.65,212.58,26.0]
[1756470753910,1e-08,212.65,212.61,11.75858155]
[1756470754234,1e-08,212.65,212.6,57.29317729]
[1756470754428,1e-08,212.65,212.63,57.29317729]
[1756470754731,1e-08,212.65,212.58,57.29317729]
[1756470754935,1e-08,212.65,212.53,0.67]
[1756470755316,1e-08,212.65,212.63,57.29317729]
[1756470755517,1e-08,212.65,212.64,57.29317729]
[1756470755845,71.3,212.78,212.55,1.14047753]
[1756470756028,57.29317729,212.61,212.55,4.70461976]
[1756470756227,0.14216157,212.74,212.55,4.70461976]
[1756470756430,26.0,212.76,212.58,26.0]
[1756470756640,71.3,212.79,212.6,26.0]
[1756470756851,57.29317729,212.7,212.61,0.67]
[1756470757144,71.3,212.79,212.62,0.67]
[1756470757456,57.29317729,212.81,212.73,57.29317729]
[1756470757624,57.29317729,212.74,212.55,39.99043485]
[1756470757952,13.59559401,212.8,212.6,0.67]
[1756470758152,26.0,212.77,212.54,13.59559401]
[1756470758449,71.3,212.81,212.71,57.29317729]
[1756470758641,33.94,212.88,212.79,57.29317729]
[1756470758819,57.29317729,212.86,212.79,57.29317729]
[1756470759021,33.94,212.88,212.8,57.29317729]
[1756470759353,33.92,213.06,212.87,57.29317729]
[1756470759655,33.92,213.06,213.0,57.29317729]
[1756470759820,57.29317729,213.11,212.96,13.59559401]
[1756470760024,33.92,213.23,212.97,17.71595082]
[1756470760330,57.29317729,213.13,213.02,26.0]
[1756470760534,33.92,213.23,212.98,0.67]
[1756470760855,57.29317729,213.1,212.98,0.67]
[1756470761019,38.60988612,213.23,212.99,57.29317729]
[1756470761020,26.0,213.2,212.99,57.29317729]
[1756470761226,19.98708147,213.21,212.98,57.29317729]
[1756470761443,71.26,213.2,212.99,0.67]
[1756470761644,57.29317729,213.09,213.02,57.29317729]
[1756470761928,83.29317729,213.03,212.8,4.69924812]
[1756470762243,57.29317729,212.93,212.85,57.29317729]
[1756470762446,33.9,213.0,212.88,57.29317729]
[1756470762651,33.9,213.0,212.85,0.67]
[1756470762652,57.29317729,212.99,212.85,0.67]
[1756470762857,57.29317729,212.99,212.73,23.50386762]
[1756470762858,57.29317729,212.86,212.68,0.67]
[1756470763149,71.24,212.85,212.77,57.29317729]
[1756470763447,71.24,212.85,212.68,0.67]
[1756470763748,57.29317729,212.77,212.59,4.70389011]
[1756470763970,97.24,212.85,212.64,57.29317729]
[1756470763971,26.0,212.82,212.64,57.29317729]
[1756470764258,30.69889936,212.82,212.6,0.67]
[1756470764422,26.0,212.78,212.65,57.29317729]
[1756470764627,71.22,212.81,212.68,57.29317729]
[1756470764851,71.22,212.81,212.75,57.29317729]
[1756470765023,57.29317729,212.76,212.69,57.29317729]
[1756470765223,57.29317729,212.74,212.66,57.29317729]
[1756470765536,71.22,212.81,212.64,0.4702784]
[1756470765735,71.22,212.81,212.76,57.29317729]
[1756470765933,71.22,212.81,212.78,4.69968982]
[1756470766146,71.28,212.91,212.79,0.67]
[1756470766330,71.28,212.91,212.8,39.73775558]
[1756470766527,0.06,212.91,212.82,13.73775558]
[1756470766724,0.06,212.91,212.86,57.29317729]
[1756470767033,57.29317729,212.87,212.71,0.67]
[1756470767338,71.22,212.86,212.76,57.29317729]
[1756470767545,0.14216157,212.84,212.64,0.67]
[1756470767730,57.29317729,212.73,212.61,0.67]
[1756470767938,57.29317729,212.68,212.61,57.29317729]
[1756470768249,71.22,212.73,212.63,57.29317729]
[1756470768437,128.51317729,212.73,212.65,57.29317729]
[1756470768630,128.51317729,212.73,212.66,57.29317729]
[1756470768820,57.29317729,212.72,212.61,0.67]
[1756470769028,33.9,212.78,212.62,0.67]
[1756470769456,57.29317729,212.71,212.64,57.29317729]
[1756470769625,57.29317729,212.69,212.62,0.67]
[1756470769830,38.59974807,212.78,212.61,57.29317729]
[1756470770034,57.29317729,212.69,212.62,57.29317729]
[1756470770239,57.29317729,212.69,212.58,13.59559401]
[1756470770441,71.22,212.72,212.63,57.29317729]
[1756470770629,71.22,212.72,212.58,13.59559401]
[1756470770827,71.22,212.72,212.57,0.67]
[1756470771031,57.29317729,212.64,212.57,57.96317729]
[1756470771252,71.22,212.72,212.57,57.96317729]
[1756470771755,71.22,212.72,212.62,57.29317729]
[1756470772052,33.9,212.78,212.66,57.29317729]
[1756470772238,71.22,212.77,212.65,57.29317729]
[1756470772557,71.22,212.77,212.74,57.29317729]
[1756470772934,71.22,212.77,212.75,57.29317729]
[1756470773136,71.22,212.77,212.76,57.96317729]
[1756470773346,71.24,212.85,212.77,13.59559401]
[1756470774053,0.06,212.91,212.85,13.59559401]
[1756470774231,0.06,212.91,212.84,13.59559401]
[1756470774438,0.06,212.91,212.9,57.29317729]
[1756470774662,0.06,212.91,212.85,0.67]
[1756470774854,57.29317729,212.88,212.65,20.0]
[1756470775055,0.06,212.91,212.87,57.29317729]
[1756470775358,57.35317729,212.91,212.84,57.29317729]
[1756470775657,0.06,212.91,212.81,57.29317729]
[1756470775858,57.29317729,212.84,212.7,26.0]
[1756470776063,0.06,212.91,212.81,57.29317729]
[1756470776242,57.29317729,212.82,212.65,0.67]
[1756470776447,26.14216157,212.87,212.65,0.67]
[1756470776448,57.29317729,212.81,212.74,57.29317729]
[1756470776669,57.29317729,212.77,212.7,57.29317729]
[1756470776836,57.29317729,212.73,212.66,57.29317729]
[1756470777052,57.29317729,212.73,212.63,0.67]
[1756470777237,26.0,212.77,212.61,57.29317729]
[1756470777431,26.0,212.77,212.55,0.67]
[1756470777656,4.75688839,212.91,212.76,57.29317729]
[1756470777956,26.0,212.86,212.65,13.59559401]
[1756470778259,13.73775558,212.88,212.66,26.0]
[1756470778460,13.59559401,212.76,212.45,2.45878863]
[1756470778641,0.14216157,212.62,212.45,2.45878863]
[1756470778843,13.59559401,212.66,212.45,2.45878863]
[1756470778844,33.9,212.64,212.46,0.67]
[1756470779050,71.22,212.63,212.47,0.47065468]
[1756470779252,71.22,212.63,212.47,57.29317729]
[1756470779438,71.22,212.63,212.49,57.29317729]
[1756470779639,71.22,212.63,212.46,0.67]
[1756470780042,71.22,212.63,212.39,0.67]
[1756470780043,4.84538798,212.62,212.39,0.67]
[1756470780262,33.9,212.64,212.4,1.14080979]
[1756470780440,33.9,212.81,212.62,57.29317729]
[1756470780634,57.29317729,212.63,212.49,0.67]
[1756470780947,57.29317729,212.54,212.47,57.29317729]
[1756470781144,57.29317729,212.57,212.49,57.29317729]
[1756470781345,26.0,212.53,212.35,7.16958844]
[1756470781537,26.0,212.53,212.33,0.67]
[1756470781736,26.0,212.53,212.28,0.67]
[1756470781936,26.0,212.54,212.4,57.29317729]
[1756470782139,57.29317729,212.47,212.4,57.29317729]
[1756470782441,33.9,212.57,212.34,5.37924727]
[1756470782442,33.9,212.57,212.46,57.29317729]
[1756470782642,57.29317729,212.47,212.32,4.70972301]
[1756470782843,57.29317729,212.46,212.32,4.70972301]
[1756470783137,71.24,212.47,212.33,0.67]
[1756470783352,57.29317729,212.42,212.3,4.71012825]
[1756470783557,26.0,212.5,212.31,14.26559401]
[1756470783863,0.14216157,212.55,212.26,0.7]